[Event "Titled Tuesday Blitz March 28 Early 2023"]
[White "Demchenko, Anton"]
[Black "Galchenko, Matvey"]
[WhiteFideId "4160258"]
[BlackFideId "24175480"]
[WhiteElo "2545"]
[BlackElo "2404"]
[Result "1-0"]
[Round "04"]
[TimeControl "180+2"]
[Date "2023.03.28"]
[WhiteClock "0:00:04"]
[BlackClock "0:00:01"]

1. e4 {[%clk 0:02:54]}  e6 {[%clk 0:02:59]} 2. d4 {[%clk 0:02:53]}  d5 {[%clk 0:02:59]} 3. Nc3 {[%clk 0:02:54]}  Bb4 {[%clk 0:02:58]} 4. e5 {[%clk 0:02:53]}  Ne7 {[%clk 0:02:59]} 5. a3 {[%clk 0:02:52]}  Bxc3+ {[%clk 0:02:59]} 6. bxc3 {[%clk 0:02:53]}  c5 {[%clk 0:02:59]} 7. Nf3 {[%clk 0:02:53]}  h6 {[%clk 0:02:59]} 8. a4 {[%clk 0:02:52]}  b6 {[%clk 0:02:58]} 9. Bb5+ {[%clk 0:02:51]}  Bd7 {[%clk 0:02:54]} 10. Bd3 {[%clk 0:02:51]}  Qc7 {[%clk 0:02:55]} 11. O-O {[%clk 0:02:50]}  Nbc6 {[%clk 0:02:53]} 12. Re1 {[%clk 0:02:46]}  Na5 {[%clk 0:02:44]} 13. h4 {[%clk 0:02:41]}  Rc8 {[%clk 0:02:34]} 14. h5 {[%clk 0:02:37]}  cxd4 {[%clk 0:02:25]} 15. cxd4 {[%clk 0:02:31]}  Nc4 {[%clk 0:02:25]} 16. Nh4 {[%clk 0:02:19]}  a6 {[%clk 0:01:19]} 17. Qg4 {[%clk 0:02:17]}  Kf8 {[%clk 0:01:16]} 18. Bxc4 {[%clk 0:02:08]}  Qxc4 {[%clk 0:01:13]} 19. Ba3 {[%clk 0:02:07]}  Re8 {[%clk 0:01:13]} 20. Reb1 {[%clk 0:01:56]}  b5 {[%clk 0:01:05]} 21. axb5 {[%clk 0:01:43]}  Bxb5 {[%clk 0:01:05]} 22. Bc5 {[%clk 0:01:39]}  Kg8 {[%clk 0:01:02]} 23. Rb3 {[%clk 0:01:16]}  Nc6 {[%clk 0:00:45]} 24. Rg3 {[%clk 0:01:11]}  Rh7 {[%clk 0:00:45]} 25. Qf4 {[%clk 0:00:41]}  Qxc2 {[%clk 0:00:30]} 26. Rf3 {[%clk 0:00:41]}  Nd8 {[%clk 0:00:30]} 27. Rc1 {[%clk 0:00:32]}  Qe4 {[%clk 0:00:16]} 28. Qg3 {[%clk 0:00:32]}  g5 {[%clk 0:00:16]} 29. hxg6 {[%clk 0:00:30]}  Rg7 {[%clk 0:00:08]} 30. Re3 {[%clk 0:00:31]}  fxg6 {[%clk 0:00:06]} 31. Rxe4 {[%clk 0:00:31]}  dxe4 {[%clk 0:00:07]} 32. Qb3 {[%clk 0:00:25]}  Nf7 {[%clk 0:00:06]} 33. g3 {[%clk 0:00:22]}  Ng5 {[%clk 0:00:06]} 34. Bd6 {[%clk 0:00:20]}  Kh7 {[%clk 0:00:05]} 35. Rc7 {[%clk 0:00:19]}  Rxc7 {[%clk 0:00:04]} 36. Bxc7 {[%clk 0:00:20]}  Bc6 {[%clk 0:00:04]} 37. Bd6 {[%clk 0:00:13]}  Bd5 {[%clk 0:00:04]} 38. Qc3 {[%clk 0:00:11]}  Rg8 {[%clk 0:00:04]} 39. Be7 {[%clk 0:00:09]}  Nh3+ {[%clk 0:00:02]} 40. Kg2 {[%clk 0:00:09]}  e3+ {[%clk 0:00:03]} 41. Kxh3 {[%clk 0:00:08]}  exf2 {[%clk 0:00:04]} 42. Qc1 {[%clk 0:00:04]}  Rg7 {[%clk 0:00:03]} 43. Bf6 {[%clk 0:00:03]}  Rb7 {[%clk 0:00:03]} 44. Qf1 {[%clk 0:00:04]}  Rb2 {[%clk 0:00:03]} 45. Ng2 {[%clk 0:00:03]}  Bc6 {[%clk 0:00:02]} 46. Ne3 {[%clk 0:00:04]}  Bb5 {[%clk 0:00:03]} 47. Qc1 {[%clk 0:00:04]}  f1=Q+ {[%clk 0:00:01]} 48. Nxf1 {[%clk 0:00:04]} 1-0


[Site "https://www.chess.com"]

[Event "Titled Tuesday Blitz March 28 Early 2023"]
[White "Kamsky, Gata"]
[Black "Preotu, Razvan"]
[WhiteFideId "2000024"]
[BlackFideId "2613280"]
[WhiteElo "2666"]
[BlackElo "2407"]
[Result "0-1"]
[Round "04"]
[TimeControl "180+2"]
[Date "2023.03.28"]
[WhiteClock "0:00:06"]
[BlackClock "0:00:01"]

1. d4 {[%clk 0:03:00]}  Nf6 {[%clk 0:02:59]} 2. Bf4 {[%clk 0:02:59]}  d5 {[%clk 0:02:57]} 3. e3 {[%clk 0:02:59]}  c5 {[%clk 0:02:57]} 4. c3 {[%clk 0:02:58]}  Nc6 {[%clk 0:02:58]} 5. Nd2 {[%clk 0:02:58]}  Bf5 {[%clk 0:02:56]} 6. Ngf3 {[%clk 0:02:55]}  Qb6 {[%clk 0:02:54]} 7. Qc1 {[%clk 0:02:18]}  h6 {[%clk 0:02:48]} 8. dxc5 {[%clk 0:02:16]}  Qxc5 {[%clk 0:02:48]} 9. Nd4 {[%clk 0:02:06]}  Bh7 {[%clk 0:02:44]} 10. b4 {[%clk 0:01:45]}  Qb6 {[%clk 0:02:43]} 11. Bb5 {[%clk 0:01:38]}  Nd7 {[%clk 0:02:24]} 12. N2f3 {[%clk 0:01:20]}  g5 {[%clk 0:01:54]} 13. Bg3 {[%clk 0:01:19]}  g4 {[%clk 0:01:55]} 14. Nh4 {[%clk 0:00:42]}  e5 {[%clk 0:01:54]} 15. Nxc6 {[%clk 0:00:41]}  bxc6 {[%clk 0:01:21]} 16. Be2 {[%clk 0:00:40]}  f5 {[%clk 0:01:13]} 17. h3 {[%clk 0:00:32]}  Rg8 {[%clk 0:01:01]} 18. hxg4 {[%clk 0:00:32]}  fxg4 {[%clk 0:01:01]} 19. Qd1 {[%clk 0:00:28]}  h5 {[%clk 0:01:00]} 20. a3 {[%clk 0:00:21]}  Be7 {[%clk 0:00:58]} 21. c4 {[%clk 0:00:18]}  Be4 {[%clk 0:00:42]} 22. Bd3 {[%clk 0:00:17]}  a5 {[%clk 0:00:10]} 23. Bxe4 {[%clk 0:00:15]}  dxe4 {[%clk 0:00:11]} 24. c5 {[%clk 0:00:14]}  Qb5 {[%clk 0:00:11]} 25. Nf5 {[%clk 0:00:11]}  axb4 {[%clk 0:00:11]} 26. Nxe7 {[%clk 0:00:10]}  Kxe7 {[%clk 0:00:11]} 27. Qd6+ {[%clk 0:00:10]}  Kd8 {[%clk 0:00:10]} 28. Rd1 {[%clk 0:00:10]}  Ra7 {[%clk 0:00:06]} 29. Rxh5 {[%clk 0:00:10]}  bxa3 {[%clk 0:00:04]} 30. Rh7 {[%clk 0:00:10]}  Qa5+ {[%clk 0:00:03]} 31. Kf1 {[%clk 0:00:10]}  Qc7 {[%clk 0:00:03]} 32. Qe7+ {[%clk 0:00:09]}  Kc8 {[%clk 0:00:03]} 33. Qe6 {[%clk 0:00:09]}  Rd8 {[%clk 0:00:03]} 34. Bh4 {[%clk 0:00:09]}  a2 {[%clk 0:00:03]} 35. Ra1 {[%clk 0:00:06]}  Qb7 {[%clk 0:00:01]} 0-1


[Site "https://www.chess.com"]

[Event "Titled Tuesday Blitz March 28 Early 2023"]
[White "Makarian, Rudik"]
[Black "Molina, Roberto Junio Brito"]
[WhiteFideId "44105681"]
[BlackFideId "2109450"]
[WhiteElo "2436"]
[BlackElo "2376"]
[Result "1-0"]
[Round "04"]
[TimeControl "180+2"]
[Date "2023.03.28"]
[WhiteClock "0:00:13"]
[BlackClock "0:00:18"]

1. d4 {[%clk 0:02:33]}  d5 {[%clk 0:02:59]} 2. c4 {[%clk 0:02:31]}  c6 {[%clk 0:03:00]} 3. Nf3 {[%clk 0:02:30]}  Nf6 {[%clk 0:03:00]} 4. Nc3 {[%clk 0:02:31]}  dxc4 {[%clk 0:02:59]} 5. g3 {[%clk 0:02:31]}  b5 {[%clk 0:02:59]} 6. Bg2 {[%clk 0:02:29]}  Bb7 {[%clk 0:02:59]} 7. Ne5 {[%clk 0:02:29]}  a6 {[%clk 0:02:59]} 8. O-O {[%clk 0:02:29]}  e6 {[%clk 0:02:59]} 9. b3 {[%clk 0:02:29]}  cxb3 {[%clk 0:02:59]} 10. Qxb3 {[%clk 0:02:30]}  Be7 {[%clk 0:02:58]} 11. Rd1 {[%clk 0:02:20]}  O-O {[%clk 0:02:58]} 12. Ne4 {[%clk 0:02:18]}  Nxe4 {[%clk 0:02:56]} 13. Bxe4 {[%clk 0:02:19]}  Bd6 {[%clk 0:02:43]} 14. Bf4 {[%clk 0:02:03]}  Qe7 {[%clk 0:02:42]} 15. Rac1 {[%clk 0:01:58]}  Rc8 {[%clk 0:02:41]} 16. Qf3 {[%clk 0:01:21]}  f6 {[%clk 0:01:53]} 17. Nxc6 {[%clk 0:00:37]}  Nxc6 {[%clk 0:01:53]} 18. Bxc6 {[%clk 0:00:38]}  Rxc6 {[%clk 0:01:51]} 19. Rxc6 {[%clk 0:00:37]}  Bxf4 {[%clk 0:01:51]} 20. gxf4 {[%clk 0:00:34]}  Qd7 {[%clk 0:01:41]} 21. Rd6 {[%clk 0:00:18]}  Qc7 {[%clk 0:01:26]} 22. Qa3 {[%clk 0:00:14]}  Re8 {[%clk 0:01:18]} 23. Qc5 {[%clk 0:00:14]}  Qf7 {[%clk 0:01:18]} 24. f3 {[%clk 0:00:14]}  h5 {[%clk 0:01:15]} 25. Kf2 {[%clk 0:00:14]}  e5 {[%clk 0:01:14]} 26. dxe5 {[%clk 0:00:11]}  fxe5 {[%clk 0:01:15]} 27. Rd7 {[%clk 0:00:11]}  Qxf4 {[%clk 0:01:08]} 28. Rg1 {[%clk 0:00:10]}  Qxh2+ {[%clk 0:00:59]} 29. Rg2 {[%clk 0:00:11]}  Qh4+ {[%clk 0:00:59]} 30. Kf1 {[%clk 0:00:12]}  Bxf3 {[%clk 0:00:17]} 31. Rgxg7+ {[%clk 0:00:11]}  Kh8 {[%clk 0:00:18]} 32. Rh7+ {[%clk 0:00:12]}  Kg8 {[%clk 0:00:18]} 33. Rdg7# {[%clk 0:00:13]} 1-0


[Site "https://www.chess.com"]

[Event "Titled Tuesday Blitz March 28 Early 2023"]
[White "Harshavardhan G B"]
[Black "Xu, Xiangyu"]
[WhiteFideId "25059009"]
[BlackFideId "8608288"]
[WhiteElo "2323"]
[BlackElo "2477"]
[Result "0-1"]
[Round "04"]
[TimeControl "180+2"]
[Date "2023.03.28"]
[WhiteClock "0:00:04"]
[BlackClock "0:00:06"]

1. d4 {[%clk 0:02:53]}  Nf6 {[%clk 0:03:00]} 2. c4 {[%clk 0:02:51]}  e6 {[%clk 0:03:00]} 3. Nc3 {[%clk 0:02:49]}  Bb4 {[%clk 0:03:00]} 4. f3 {[%clk 0:02:50]}  d5 {[%clk 0:02:59]} 5. a3 {[%clk 0:02:49]}  Be7 {[%clk 0:02:53]} 6. e4 {[%clk 0:02:49]}  dxe4 {[%clk 0:02:53]} 7. fxe4 {[%clk 0:02:50]}  c5 {[%clk 0:02:53]} 8. d5 {[%clk 0:02:50]}  exd5 {[%clk 0:02:54]} 9. exd5 {[%clk 0:02:49]}  O-O {[%clk 0:02:54]} 10. Nf3 {[%clk 0:02:47]}  Bg4 {[%clk 0:02:52]} 11. Be2 {[%clk 0:02:47]}  Bd6 {[%clk 0:02:49]} 12. O-O {[%clk 0:02:46]}  a6 {[%clk 0:02:42]} 13. h3 {[%clk 0:02:45]}  Bxf3 {[%clk 0:02:41]} 14. Bxf3 {[%clk 0:02:44]}  Nbd7 {[%clk 0:02:42]} 15. Bg5 {[%clk 0:02:42]}  h6 {[%clk 0:02:38]} 16. Bh4 {[%clk 0:02:42]}  Qc7 {[%clk 0:02:35]} 17. Qc2 {[%clk 0:02:34]}  Rae8 {[%clk 0:02:32]} 18. Ne4 {[%clk 0:02:03]}  Be5 {[%clk 0:01:58]} 19. Rae1 {[%clk 0:01:58]}  Nxe4 {[%clk 0:01:49]} 20. Bxe4 {[%clk 0:01:57]}  Qd6 {[%clk 0:01:48]} 21. Bh7+ {[%clk 0:01:21]}  Kh8 {[%clk 0:01:48]} 22. Bf5 {[%clk 0:01:22]}  Bd4+ {[%clk 0:01:39]} 23. Kh1 {[%clk 0:01:21]}  Ne5 {[%clk 0:01:21]} 24. b3 {[%clk 0:01:10]}  g6 {[%clk 0:01:16]} 25. Bd3 {[%clk 0:01:05]}  f5 {[%clk 0:01:13]} 26. Bg3 {[%clk 0:00:50]}  Qf6 {[%clk 0:01:12]} 27. b4 {[%clk 0:00:49]}  b6 {[%clk 0:01:10]} 28. Qd2 {[%clk 0:00:41]}  Kg7 {[%clk 0:00:47]} 29. Bf4 {[%clk 0:00:35]}  g5 {[%clk 0:00:42]} 30. Be3 {[%clk 0:00:15]}  Bxe3 {[%clk 0:00:25]} 31. Qxe3 {[%clk 0:00:13]}  f4 {[%clk 0:00:24]} 32. Qe4 {[%clk 0:00:13]}  Nxd3 {[%clk 0:00:22]} 33. Qxd3 {[%clk 0:00:14]}  Qd6 {[%clk 0:00:21]} 34. Qc3+ {[%clk 0:00:11]}  Qf6 {[%clk 0:00:21]} 35. Qd3 {[%clk 0:00:11]}  Qd6 {[%clk 0:00:19]} 36. Qc3+ {[%clk 0:00:10]}  Kf7 {[%clk 0:00:17]} 37. Qd3 {[%clk 0:00:07]}  Qg6 {[%clk 0:00:17]} 38. Qb3 {[%clk 0:00:06]}  Qd6 {[%clk 0:00:10]} 39. bxc5 {[%clk 0:00:06]}  bxc5 {[%clk 0:00:09]} 40. Qb7+ {[%clk 0:00:05]}  Kg6 {[%clk 0:00:10]} 41. Rb1 {[%clk 0:00:04]}  Rf6 {[%clk 0:00:08]} 42. Qa7 {[%clk 0:00:03]}  f3 {[%clk 0:00:07]} 43. Rxf3 {[%clk 0:00:03]}  Rxf3 {[%clk 0:00:06]} 44. gxf3 {[%clk 0:00:04]}  Qg3 {[%clk 0:00:06]} 0-1


[Site "https://www.chess.com"]

[Event "Titled Tuesday Blitz March 28 Early 2023"]
[White "Terry, Renato"]
[Black "Kosteniuk, Alexandra"]
[WhiteFideId "3803457"]
[BlackFideId "4128125"]
[WhiteElo "2579"]
[BlackElo "2453"]
[Result "1/2-1/2"]
[Round "04"]
[TimeControl "180+2"]
[Date "2023.03.28"]
[WhiteClock "0:00:11"]
[BlackClock "0:00:16"]

1. Nf3 {[%clk 0:03:00]}  f5 {[%clk 0:02:59]} 2. d3 {[%clk 0:03:00]}  Nf6 {[%clk 0:02:58]} 3. e4 {[%clk 0:03:01]}  d6 {[%clk 0:02:52]} 4. Nc3 {[%clk 0:03:00]}  e5 {[%clk 0:02:49]} 5. exf5 {[%clk 0:02:53]}  Bxf5 {[%clk 0:02:44]} 6. d4 {[%clk 0:02:54]}  Nc6 {[%clk 0:02:28]} 7. Bb5 {[%clk 0:02:40]}  exd4 {[%clk 0:02:20]} 8. Nxd4 {[%clk 0:02:36]}  Bd7 {[%clk 0:02:20]} 9. O-O {[%clk 0:02:31]}  Nxd4 {[%clk 0:02:08]} 10. Qxd4 {[%clk 0:02:32]}  Bxb5 {[%clk 0:01:57]} 11. Nxb5 {[%clk 0:02:33]}  Qd7 {[%clk 0:01:57]} 12. Qc4 {[%clk 0:02:02]}  c6 {[%clk 0:01:49]} 13. Re1+ {[%clk 0:01:57]}  Be7 {[%clk 0:01:48]} 14. Nd4 {[%clk 0:01:55]}  d5 {[%clk 0:01:46]} 15. Qd3 {[%clk 0:01:45]}  O-O {[%clk 0:01:43]} 16. Bg5 {[%clk 0:01:43]}  Rae8 {[%clk 0:01:28]} 17. Qf5 {[%clk 0:01:16]}  Qxf5 {[%clk 0:01:13]} 18. Nxf5 {[%clk 0:01:16]}  Bc5 {[%clk 0:01:13]} 19. Be3 {[%clk 0:01:14]}  Bxe3 {[%clk 0:01:06]} 20. Nxe3 {[%clk 0:01:15]}  Ne4 {[%clk 0:01:02]} 21. f3 {[%clk 0:01:15]}  Nd6 {[%clk 0:01:03]} 22. Rad1 {[%clk 0:01:09]}  Re6 {[%clk 0:01:01]} 23. Ng4 {[%clk 0:01:06]}  Rfe8 {[%clk 0:01:00]} 24. Rxe6 {[%clk 0:01:06]}  Rxe6 {[%clk 0:01:01]} 25. Kf2 {[%clk 0:01:07]}  Nf5 {[%clk 0:00:57]} 26. f4 {[%clk 0:00:59]}  Re4 {[%clk 0:00:50]} 27. g3 {[%clk 0:00:59]}  h5 {[%clk 0:00:46]} 28. Ne5 {[%clk 0:00:59]}  Ne3 {[%clk 0:00:42]} 29. Rc1 {[%clk 0:00:53]}  Nc4 {[%clk 0:00:36]} 30. Nd3 {[%clk 0:00:46]}  Ne3 {[%clk 0:00:19]} 31. h3 {[%clk 0:00:33]}  Nf5 {[%clk 0:00:18]} 32. Nc5 {[%clk 0:00:29]}  Re7 {[%clk 0:00:17]} 33. g4 {[%clk 0:00:27]}  hxg4 {[%clk 0:00:17]} 34. hxg4 {[%clk 0:00:28]}  Nd6 {[%clk 0:00:17]} 35. Kf3 {[%clk 0:00:15]}  Nc4 {[%clk 0:00:15]} 36. b3 {[%clk 0:00:14]}  Nd2+ {[%clk 0:00:15]} 37. Kf2 {[%clk 0:00:14]}  Ne4+ {[%clk 0:00:15]} 38. Nxe4 {[%clk 0:00:14]}  Rxe4 {[%clk 0:00:16]} 39. Kf3 {[%clk 0:00:15]}  Kf7 {[%clk 0:00:16]} 40. c4 {[%clk 0:00:15]}  Rd4 {[%clk 0:00:15]} 41. Ke3 {[%clk 0:00:14]}  Re4+ {[%clk 0:00:15]} 42. Kf3 {[%clk 0:00:14]}  Rd4 {[%clk 0:00:16]} 43. Ke3 {[%clk 0:00:11]}  Re4+ {[%clk 0:00:16]} 44. Kf3 {[%clk 0:00:11]} 1/2-1/2


[Site "https://www.chess.com"]

[Event "Titled Tuesday Blitz March 28 Early 2023"]
[White "Aradhya, Garg"]
[Black "Vasquez Schroeder, Rodrigo"]
[WhiteFideId "25006746"]
[BlackFideId "3400042"]
[WhiteElo "2263"]
[BlackElo "2600"]
[Result "1-0"]
[Round "04"]
[TimeControl "180+2"]
[Date "2023.03.28"]
[WhiteClock "0:00:43"]
[BlackClock "0:01:33"]

1. d4 {[%clk 0:03:00]}  d5 {[%clk 0:02:59]} 2. c4 {[%clk 0:03:01]}  c6 {[%clk 0:02:59]} 3. Nc3 {[%clk 0:03:00]}  Nf6 {[%clk 0:02:59]} 4. e3 {[%clk 0:03:00]}  e6 {[%clk 0:02:59]} 5. Nf3 {[%clk 0:02:58]}  Nbd7 {[%clk 0:02:59]} 6. Be2 {[%clk 0:02:57]}  b6 {[%clk 0:02:59]} 7. O-O {[%clk 0:02:57]}  Bb7 {[%clk 0:02:59]} 8. b3 {[%clk 0:02:57]}  Bd6 {[%clk 0:02:57]} 9. Bb2 {[%clk 0:02:57]}  O-O {[%clk 0:02:58]} 10. Qc2 {[%clk 0:02:53]}  Rc8 {[%clk 0:02:57]} 11. Rad1 {[%clk 0:02:53]}  Qe7 {[%clk 0:02:57]} 12. Rfe1 {[%clk 0:02:53]}  c5 {[%clk 0:02:55]} 13. dxc5 {[%clk 0:02:48]}  Nxc5 {[%clk 0:02:46]} 14. Nb5 {[%clk 0:02:44]}  Bb8 {[%clk 0:02:43]} 15. Qb1 {[%clk 0:02:38]}  h6 {[%clk 0:02:38]} 16. cxd5 {[%clk 0:02:32]}  Bxd5 {[%clk 0:02:35]} 17. Nc3 {[%clk 0:02:32]}  Bb7 {[%clk 0:02:34]} 18. Nd4 {[%clk 0:02:13]}  Rfd8 {[%clk 0:02:33]} 19. Bf3 {[%clk 0:02:10]}  Bxf3 {[%clk 0:02:33]} 20. Nxf3 {[%clk 0:02:09]}  Qb7 {[%clk 0:02:34]} 21. h3 {[%clk 0:01:47]}  a6 {[%clk 0:02:32]} 22. Rxd8+ {[%clk 0:01:41]}  Rxd8 {[%clk 0:02:32]} 23. Rd1 {[%clk 0:01:42]}  Rd7 {[%clk 0:02:30]} 24. b4 {[%clk 0:01:39]}  Rxd1+ {[%clk 0:02:30]} 25. Qxd1 {[%clk 0:01:40]}  Ncd7 {[%clk 0:02:30]} 26. a4 {[%clk 0:01:24]}  Qc6 {[%clk 0:02:18]} 27. Qd3 {[%clk 0:01:23]}  Bc7 {[%clk 0:01:58]} 28. Qxa6 {[%clk 0:01:16]}  Ne5 {[%clk 0:01:53]} 29. Qc8+ {[%clk 0:01:10]}  Kh7 {[%clk 0:01:38]} 30. Nxe5 {[%clk 0:01:07]}  Qd6 {[%clk 0:01:39]} 31. Nf3 {[%clk 0:00:59]}  Qxb4 {[%clk 0:01:37]} 32. Qxc7 {[%clk 0:00:58]}  Qxb2 {[%clk 0:01:37]} 33. Qc4 {[%clk 0:00:45]}  Qc1+ {[%clk 0:01:33]} 34. Kh2 {[%clk 0:00:44]}  Nd5 {[%clk 0:01:33]} 35. Qd3+ {[%clk 0:00:43]} 1-0


[Site "https://www.chess.com"]

[Event "Titled Tuesday Blitz March 28 Early 2023"]
[White "Papasimakopoulos, Alexandros"]
[Black "Moroni, Luca Jr"]
[WhiteFideId "4244125"]
[BlackFideId "865834"]
[WhiteElo "2359"]
[BlackElo "2569"]
[Result "1-0"]
[Round "04"]
[TimeControl "180+2"]
[Date "2023.03.28"]
[WhiteClock "0:00:02"]
[BlackClock "0:00:02"]

1. d4 {[%clk 0:03:00]}  d6 {[%clk 0:02:52]} 2. Nf3 {[%clk 0:02:59]}  g6 {[%clk 0:02:51]} 3. c4 {[%clk 0:02:57]}  Bg7 {[%clk 0:02:52]} 4. Nc3 {[%clk 0:02:58]}  Nc6 {[%clk 0:02:52]} 5. Bg5 {[%clk 0:02:52]}  h6 {[%clk 0:02:48]} 6. Bf4 {[%clk 0:02:50]}  Bg4 {[%clk 0:02:43]} 7. d5 {[%clk 0:02:46]}  Nb8 {[%clk 0:02:41]} 8. e4 {[%clk 0:02:42]}  Nd7 {[%clk 0:02:40]} 9. Be2 {[%clk 0:02:40]}  Ngf6 {[%clk 0:02:36]} 10. O-O {[%clk 0:02:32]}  Nh5 {[%clk 0:02:35]} 11. Bd2 {[%clk 0:02:29]}  O-O {[%clk 0:02:31]} 12. Re1 {[%clk 0:02:27]}  c6 {[%clk 0:02:26]} 13. Be3 {[%clk 0:02:17]}  cxd5 {[%clk 0:02:16]} 14. exd5 {[%clk 0:02:12]}  Bxf3 {[%clk 0:02:04]} 15. Bxf3 {[%clk 0:02:11]}  Nhf6 {[%clk 0:02:05]} 16. Bd4 {[%clk 0:02:09]}  a6 {[%clk 0:02:02]} 17. Qd2 {[%clk 0:02:01]}  Rc8 {[%clk 0:02:00]} 18. b3 {[%clk 0:02:00]}  Nh7 {[%clk 0:01:35]} 19. Bxg7 {[%clk 0:01:56]}  Kxg7 {[%clk 0:01:35]} 20. Re3 {[%clk 0:01:51]}  Nhf6 {[%clk 0:01:27]} 21. Rae1 {[%clk 0:01:50]}  Re8 {[%clk 0:01:27]} 22. a4 {[%clk 0:01:44]}  Nc5 {[%clk 0:01:21]} 23. Bd1 {[%clk 0:01:44]}  e5 {[%clk 0:01:14]} 24. dxe6 {[%clk 0:01:42]}  Rxe6 {[%clk 0:01:11]} 25. Rxe6 {[%clk 0:01:30]}  Nxe6 {[%clk 0:01:12]} 26. Bc2 {[%clk 0:01:25]}  Qa5 {[%clk 0:01:10]} 27. Rd1 {[%clk 0:01:22]}  Rd8 {[%clk 0:01:03]} 28. g3 {[%clk 0:01:17]}  Ng5 {[%clk 0:00:59]} 29. Kg2 {[%clk 0:01:13]}  Qc5 {[%clk 0:00:41]} 30. h4 {[%clk 0:01:00]}  Ne6 {[%clk 0:00:38]} 31. Nd5 {[%clk 0:00:51]}  Nxd5 {[%clk 0:00:37]} 32. Qxd5 {[%clk 0:00:52]}  b6 {[%clk 0:00:31]} 33. Be4 {[%clk 0:00:42]}  a5 {[%clk 0:00:31]} 34. Qd2 {[%clk 0:00:37]}  Qe5 {[%clk 0:00:29]} 35. Bc2 {[%clk 0:00:30]}  Nc5 {[%clk 0:00:29]} 36. Re1 {[%clk 0:00:28]}  Qf6 {[%clk 0:00:29]} 37. Re3 {[%clk 0:00:19]}  Rd7 {[%clk 0:00:28]} 38. h5 {[%clk 0:00:17]}  g5 {[%clk 0:00:21]} 39. Qd5 {[%clk 0:00:15]}  Re7 {[%clk 0:00:17]} 40. Rf3 {[%clk 0:00:09]}  Qe5 {[%clk 0:00:17]} 41. Qc6 {[%clk 0:00:04]}  Ne6 {[%clk 0:00:11]} 42. Qe4 {[%clk 0:00:02]}  Qxe4 {[%clk 0:00:10]} 43. Bxe4 {[%clk 0:00:03]}  Nc5 {[%clk 0:00:03]} 44. Bd5 {[%clk 0:00:03]}  f6 {[%clk 0:00:01]} 45. g4 {[%clk 0:00:02]}  Re5 {[%clk 0:00:02]} 46. Kg3 {[%clk 0:00:02]} 1-0


[Site "https://www.chess.com"]

[Event "Titled Tuesday Blitz March 28 Early 2023"]
[White "Deac, Bogdan-Daniel"]
[Black "Guerrero Olmos, Sergio"]
[WhiteFideId "1226380"]
[BlackFideId "2257238"]
[WhiteElo "2649"]
[BlackElo "2266"]
[Result "1-0"]
[Round "04"]
[TimeControl "180+2"]
[Date "2023.03.28"]
[WhiteClock "0:00:33"]
[BlackClock "0:00:37"]

1. b3 {[%clk 0:02:58]}  d5 {[%clk 0:02:57]} 2. Bb2 {[%clk 0:02:56]}  Bf5 {[%clk 0:02:57]} 3. e3 {[%clk 0:02:55]}  Nf6 {[%clk 0:02:57]} 4. c4 {[%clk 0:02:56]}  e6 {[%clk 0:02:57]} 5. cxd5 {[%clk 0:02:56]}  exd5 {[%clk 0:02:57]} 6. Qf3 {[%clk 0:02:56]}  Bg6 {[%clk 0:02:46]} 7. Bxf6 {[%clk 0:02:55]}  Qxf6 {[%clk 0:02:41]} 8. Qxf6 {[%clk 0:02:54]}  gxf6 {[%clk 0:02:40]} 9. Ne2 {[%clk 0:02:51]}  Nc6 {[%clk 0:02:37]} 10. Nf4 {[%clk 0:02:40]}  Nb4 {[%clk 0:02:27]} 11. Nxg6 {[%clk 0:02:40]}  hxg6 {[%clk 0:02:16]} 12. Kd1 {[%clk 0:02:37]}  O-O-O {[%clk 0:02:11]} 13. a3 {[%clk 0:02:32]}  Nc6 {[%clk 0:02:10]} 14. d4 {[%clk 0:02:30]}  f5 {[%clk 0:02:04]} 15. g3 {[%clk 0:02:29]}  Bg7 {[%clk 0:01:57]} 16. Nc3 {[%clk 0:02:21]}  a6 {[%clk 0:01:53]} 17. b4 {[%clk 0:02:16]}  Nxd4 {[%clk 0:01:47]} 18. exd4 {[%clk 0:02:14]}  Bxd4 {[%clk 0:01:48]} 19. Rc1 {[%clk 0:02:13]}  Bxf2 {[%clk 0:01:47]} 20. Bg2 {[%clk 0:02:14]}  c6 {[%clk 0:01:14]} 21. Ke2 {[%clk 0:01:44]}  Ba7 {[%clk 0:01:09]} 22. Kd3 {[%clk 0:00:51]}  Kb8 {[%clk 0:01:01]} 23. Rce1 {[%clk 0:00:49]}  Rde8 {[%clk 0:00:56]} 24. Rxe8+ {[%clk 0:00:49]}  Rxe8 {[%clk 0:00:55]} 25. Nd1 {[%clk 0:00:50]}  Kc7 {[%clk 0:00:53]} 26. h4 {[%clk 0:00:49]}  Kd6 {[%clk 0:00:54]} 27. h5 {[%clk 0:00:44]}  Rh8 {[%clk 0:00:41]} 28. hxg6 {[%clk 0:00:34]}  Rxh1 {[%clk 0:00:38]} 29. g7 {[%clk 0:00:32]}  Rxd1+ {[%clk 0:00:38]} 30. Ke2 {[%clk 0:00:33]}  Rg1 {[%clk 0:00:37]} 31. Kf3 {[%clk 0:00:33]} 1-0


[Site "https://www.chess.com"]